[Event "Early-Titled-Tuesday-Blitz-May-07-2024"]
[Site "Chess.com"]
[Date "2024.05.07"]
[Round "3"]
[White "stollenmonster"]
[Black "IwkooO"]
[Result "1-0"]
[WhiteElo "2924"]
[BlackElo "2695"]
[TimeControl "180+1"]
[EndTime "8:32:57 PDT"]
[Termination "stollenmonster won by resignation"]

1. e4 {[%clk 0:03:00.9]} 1... e5 {[%clk 0:02:53.9]} 2. Nc3 {[%clk 0:03:00]} 2...
Nf6 {[%clk 0:02:53.7]} 3. g3 {[%clk 0:02:59.9]} 3... Bb4 {[%clk 0:02:46.6]} 4.
Bg2 {[%clk 0:03:00]} 4... O-O {[%clk 0:02:47.3]} 5. Nge2 {[%clk 0:03:00.3]} 5...
c6 {[%clk 0:02:46.4]} 6. O-O {[%clk 0:03:00.1]} 6... Re8 {[%clk 0:02:47]} 7. h3
{[%clk 0:02:59.7]} 7... d5 {[%clk 0:02:46.9]} 8. exd5 {[%clk 0:03:00.6]} 8...
cxd5 {[%clk 0:02:47.7]} 9. d4 {[%clk 0:03:01.3]} 9... e4 {[%clk 0:02:46.5]} 10.
Bg5 {[%clk 0:02:57.9]} 10... Be6 {[%clk 0:02:46.4]} 11. Nf4 {[%clk 0:02:57.4]}
11... Bxc3 {[%clk 0:02:46.2]} 12. bxc3 {[%clk 0:02:57.9]} 12... Nbd7 {[%clk
0:02:30.8]} 13. Nxe6 {[%clk 0:02:54.1]} 13... fxe6 {[%clk 0:02:28.4]} 14. f3
{[%clk 0:02:44.3]} 14... exf3 {[%clk 0:02:29.3]} 15. Rxf3 {[%clk 0:02:42.3]}
15... h6 {[%clk 0:02:20.9]} 16. Bf4 {[%clk 0:02:42.6]} 16... Rc8 {[%clk
0:02:20.9]} 17. Re3 {[%clk 0:02:39.1]} 17... Qa5 {[%clk 0:02:18.6]} 18. Qe1
{[%clk 0:02:31.4]} 18... Rc6 {[%clk 0:02:15.5]} 19. g4 {[%clk 0:02:29.8]} 19...
Nf8 {[%clk 0:02:09.9]} 20. g5 {[%clk 0:02:28.2]} 20... Nh5 {[%clk 0:02:08.8]}
21. Be5 {[%clk 0:02:07.7]} 21... hxg5 {[%clk 0:02:07.8]} 22. Rb1 {[%clk
0:01:56.9]} 22... b6 {[%clk 0:02:01.8]} 23. a4 {[%clk 0:01:21]} 23... Rec8
{[%clk 0:01:51.1]} 24. Rb3 {[%clk 0:01:18.1]} 24... Qxa4 {[%clk 0:01:44.2]} 25.
Bf1 {[%clk 0:01:18.4]} 25... Qa2 {[%clk 0:01:36.7]} 26. Qc1 {[%clk 0:01:14.8]}
26... Nf4 {[%clk 0:00:45.6]} 27. Ra3 {[%clk 0:01:11.9]} 27... Qxa3 {[%clk
0:00:43.3]} 28. Qxa3 {[%clk 0:01:11.9]} 28... N8g6 {[%clk 0:00:39.5]} 29. Bb5
{[%clk 0:01:02.2]} 29... Nxe5 {[%clk 0:00:39.7]} 30. Bxc6 {[%clk 0:01:01.8]}
30... Nc4 {[%clk 0:00:39.5]} 31. Qa6 {[%clk 0:00:46.8]} 31... Rxc6 {[%clk
0:00:36.2]} 32. Re1 {[%clk 0:00:46.4]} 32... Rc7 {[%clk 0:00:36.4]} 33. Qb5
{[%clk 0:00:43.5]} 33... Nd6 {[%clk 0:00:35.9]} 34. Qb4 {[%clk 0:00:41.1]} 34...
Ne4 {[%clk 0:00:35]} 35. Re3 {[%clk 0:00:36.1]} 35... Nxc3 {[%clk 0:00:29.6]}
36. Qd6 {[%clk 0:00:33.2]} 36... Nce2+ {[%clk 0:00:22.3]} 37. Kf1 {[%clk
0:00:24.9]} 37... Rxc2 {[%clk 0:00:18.6]} 38. Qd8+ {[%clk 0:00:24.4]} 38... Kh7
{[%clk 0:00:14.1]} 39. Qxg5 {[%clk 0:00:24.1]} 39... Rc1+ {[%clk 0:00:13.5]} 40.
Kf2 {[%clk 0:00:24]} 40... Kg8 {[%clk 0:00:11.5]} 41. Qd8+ {[%clk 0:00:17.8]}
41... Kf7 {[%clk 0:00:11.6]} 42. Rxe2 {[%clk 0:00:17.5]} 42... Nxe2 {[%clk
0:00:11.7]} 43. Kxe2 {[%clk 0:00:18.4]} 43... Rc3 {[%clk 0:00:11.3]} 44. Qd7+
{[%clk 0:00:18]} 44... Kf6 {[%clk 0:00:11.9]} 45. h4 {[%clk 0:00:16]} 45... Rh3
{[%clk 0:00:10.4]} 46. Qd8+ {[%clk 0:00:15.1]} 46... Kf7 {[%clk 0:00:09.6]} 47.
Qd7+ {[%clk 0:00:13.6]} 47... Kf6 {[%clk 0:00:10.2]} 48. Qd8+ {[%clk 0:00:14.1]}
48... Kf7 {[%clk 0:00:10.6]} 49. Qg5 {[%clk 0:00:14.4]} 49... a5 {[%clk
0:00:09.9]} 50. h5 {[%clk 0:00:14.5]} 50... a4 {[%clk 0:00:09.7]} 51. Qg6+
{[%clk 0:00:15]} 51... Kf8 {[%clk 0:00:09.5]} 52. Qxe6 {[%clk 0:00:15.5]} 52...
Rxh5 {[%clk 0:00:09.9]} 53. Qxb6 {[%clk 0:00:15.6]} 53... Rf5 {[%clk 0:00:09.7]}
54. Qc5+ {[%clk 0:00:15.2]} 54... Kf7 {[%clk 0:00:09.8]} 55. Qb4 {[%clk
0:00:15.2]} 55... g6 {[%clk 0:00:10.4]} 56. Qxa4 {[%clk 0:00:15.1]} 56... Kg7
{[%clk 0:00:11]} 57. Ke3 {[%clk 0:00:15.5]} 57... Kf6 {[%clk 0:00:11.5]} 58. Qd7
{[%clk 0:00:15.2]} 58... Kg5 {[%clk 0:00:11.6]} 59. Qe7+ {[%clk 0:00:15]} 59...
Kh5 {[%clk 0:00:11.8]} 60. Qh7+ {[%clk 0:00:13.9]} 60... Kg5 {[%clk 0:00:12]}
61. Qh2 {[%clk 0:00:14.2]} 61... Kf6 {[%clk 0:00:12.2]} 62. Qh4+ {[%clk
0:00:13.7]} 62... Kf7 {[%clk 0:00:12.6]} 63. Kd3 {[%clk 0:00:14]} 63... Rf3+
{[%clk 0:00:11.2]} 64. Kc2 {[%clk 0:00:12.6]} 64... Rf4 {[%clk 0:00:11.7]} 65.
Qxf4+ {[%clk 0:00:12.4]} 1-0

[Event "Early-Titled-Tuesday-Blitz-May-07-2024"]
[Site "Chess.com"]
[Date "2024.05.07"]
[Round "3"]
[White "DvaHrasta"]
[Black "arenal72"]
[Result "0-1"]
[WhiteElo "2440"]
[BlackElo "2613"]
[TimeControl "180+1"]
[EndTime "8:33:01 PDT"]
[Termination "arenal72 won on time"]

1. c4 {[%clk 0:03:00.9]} 1... e6 {[%clk 0:02:58.7]} 2. g3 {[%clk 0:03:00.7]}
2... d5 {[%clk 0:02:58.8]} 3. d4 {[%clk 0:03:00.4]} 3... dxc4 {[%clk 0:02:54.3]}
4. Bg2 {[%clk 0:02:58.7]} 4... Nf6 {[%clk 0:02:50.5]} 5. Nf3 {[%clk 0:02:58.6]}
5... Bd7 {[%clk 0:02:50.7]} 6. O-O {[%clk 0:02:58.1]} 6... Bc6 {[%clk 0:02:50]}
7. a4 {[%clk 0:02:55.2]} 7... a5 {[%clk 0:02:45.9]} 8. Nbd2 {[%clk 0:02:50.6]}
8... Nbd7 {[%clk 0:02:32.9]} 9. Nxc4 {[%clk 0:02:49.3]} 9... Bb4 {[%clk
0:02:30.7]} 10. b3 {[%clk 0:02:42.6]} 10... O-O {[%clk 0:02:30]} 11. Bb2 {[%clk
0:02:41.6]} 11... Bd5 {[%clk 0:02:25]} 12. Rc1 {[%clk 0:02:38.8]} 12... Rc8
{[%clk 0:02:22.5]} 13. Nfe5 {[%clk 0:02:28.8]} 13... Bxg2 {[%clk 0:02:16.4]} 14.
Kxg2 {[%clk 0:02:27.7]} 14... Nxe5 {[%clk 0:02:16.6]} 15. Nxe5 {[%clk
0:02:22.1]} 15... Qd5+ {[%clk 0:02:11.9]} 16. f3 {[%clk 0:02:21.1]} 16... c5
{[%clk 0:01:54.3]} 17. e4 {[%clk 0:02:19.4]} 17... Qd8 {[%clk 0:01:48.8]} 18.
dxc5 {[%clk 0:02:01.7]} 18... Bxc5 {[%clk 0:01:38.4]} 19. Nc4 {[%clk 0:01:52.6]}
19... b6 {[%clk 0:01:30.5]} 20. Qxd8 {[%clk 0:01:51.6]} 20... Rfxd8 {[%clk
0:01:29.7]} 21. Bxf6 {[%clk 0:01:50.9]} 21... gxf6 {[%clk 0:01:29.8]} 22. Rfd1
{[%clk 0:01:50.8]} 22... Kf8 {[%clk 0:01:29.3]} 23. Kf1 {[%clk 0:01:49.5]} 23...
Ke7 {[%clk 0:01:28.2]} 24. Ke2 {[%clk 0:01:49.7]} 24... h5 {[%clk 0:01:28.1]}
25. Rxd8 {[%clk 0:01:48.8]} 25... Rxd8 {[%clk 0:01:27.7]} 26. Rd1 {[%clk
0:01:49]} 26... Rg8 {[%clk 0:01:25.8]} 27. Rc1 {[%clk 0:01:41.8]} 27... Bd4
{[%clk 0:01:13.3]} 28. Rd1 {[%clk 0:01:36]} 28... Rd8 {[%clk 0:01:12.1]} 29. g4
{[%clk 0:01:28.3]} 29... hxg4 {[%clk 0:01:11.5]} 30. fxg4 {[%clk 0:01:27.8]}
30... e5 {[%clk 0:00:59.7]} 31. h4 {[%clk 0:01:24.9]} 31... Rb8 {[%clk
0:00:52.2]} 32. Ne3 {[%clk 0:01:21.2]} 32... Bxe3 {[%clk 0:00:42.5]} 33. Kxe3
{[%clk 0:01:21.2]} 33... b5 {[%clk 0:00:43.1]} 34. axb5 {[%clk 0:01:04.2]} 34...
Rxb5 {[%clk 0:00:44]} 35. Rd3 {[%clk 0:01:04.3]} 35... Kf8 {[%clk 0:00:42.1]}
36. h5 {[%clk 0:01:03.5]} 36... Kg7 {[%clk 0:00:41.6]} 37. Kd2 {[%clk 0:00:58]}
37... Rb4 {[%clk 0:00:41.5]} 38. Re3 {[%clk 0:00:55.9]} 38... Kh6 {[%clk
0:00:39.4]} 39. Kc3 {[%clk 0:00:51.8]} 39... Kg5 {[%clk 0:00:38.2]} 40. Rf3
{[%clk 0:00:38.3]} 40... Rb6 {[%clk 0:00:24.7]} 41. Rg3 {[%clk 0:00:32.2]} 41...
Kf4 {[%clk 0:00:19.8]} 42. Rg1 {[%clk 0:00:32.2]} 42... Kg5 {[%clk 0:00:18.3]}
43. Rg2 {[%clk 0:00:25.5]} 43... Rc6+ {[%clk 0:00:18.2]} 44. Kd3 {[%clk
0:00:25.2]} 44... Rc8 {[%clk 0:00:16.4]} 45. Rf2 {[%clk 0:00:21.7]} 45... Rd8+
{[%clk 0:00:16]} 46. Kc3 {[%clk 0:00:21.3]} 46... Rd6 {[%clk 0:00:16.2]} 47. Rg2
{[%clk 0:00:20.8]} 47... Rd4 {[%clk 0:00:13.2]} 48. Rf2 {[%clk 0:00:19]} 48...
Rxe4 {[%clk 0:00:13.1]} 49. Rf5+ {[%clk 0:00:19.1]} 49... Kxg4 {[%clk 0:00:13]}
50. Rxf6 {[%clk 0:00:19.6]} 50... Kxh5 {[%clk 0:00:11.9]} 51. Rxf7 {[%clk
0:00:20]} 51... a4 {[%clk 0:00:11.5]} 52. b4 {[%clk 0:00:17.8]} 52... Kg5 {[%clk
0:00:08.1]} 53. Ra7 {[%clk 0:00:15.1]} 53... Re3+ {[%clk 0:00:07]} 54. Kd2
{[%clk 0:00:12.3]} 54... Ra3 {[%clk 0:00:06.7]} 55. b5 {[%clk 0:00:12.4]} 55...
Rb3 {[%clk 0:00:05.4]} 56. Rxa4 {[%clk 0:00:11.1]} 56... Rxb5 {[%clk 0:00:06]}
57. Ke3 {[%clk 0:00:08.9]} 57... Kf5 {[%clk 0:00:06.5]} 58. Ra3 {[%clk 0:00:09]}
58... Rb8 {[%clk 0:00:07]} 59. Ke2 {[%clk 0:00:09.2]} 59... Rh8 {[%clk
0:00:07.4]} 60. Rf3+ {[%clk 0:00:08.2]} 60... Ke6 {[%clk 0:00:07.8]} 61. Rf8
{[%clk 0:00:08.1]} 61... Rxf8 {[%clk 0:00:07.3]} 0-1

[Event "Early-Titled-Tuesday-Blitz-May-07-2024"]
[Site "Chess.com"]
[Date "2024.05.07"]
[Round "3"]
[White "klifus"]
[Black "yaguigor"]
[Result "0-1"]
[WhiteElo "2213"]
[BlackElo "2559"]
[TimeControl "180+1"]
[EndTime "8:33:06 PDT"]
[Termination "yaguigor won by resignation"]

1. e4 {[%clk 0:03:00.9]} 1... Nc6 {[%clk 0:02:58.3]} 2. Nf3 {[%clk 0:02:59.4]}
2... d5 {[%clk 0:02:54.5]} 3. exd5 {[%clk 0:02:57.9]} 3... Qxd5 {[%clk
0:02:55.4]} 4. Nc3 {[%clk 0:02:57.4]} 4... Qa5 {[%clk 0:02:55.3]} 5. d4 {[%clk
0:02:55.4]} 5... Nf6 {[%clk 0:02:45.9]} 6. Bb5 {[%clk 0:02:36.7]} 6... Bd7
{[%clk 0:02:03.6]} 7. d5 {[%clk 0:02:30.3]} 7... Nb4 {[%clk 0:01:56.4]} 8. Bxd7+
{[%clk 0:02:28.8]} 8... Nxd7 {[%clk 0:01:51.6]} 9. a3 {[%clk 0:02:25.4]} 9...
Na6 {[%clk 0:01:43.1]} 10. Be3 {[%clk 0:02:17.8]} 10... c6 {[%clk 0:01:37.5]}
11. b4 {[%clk 0:02:15]} 11... Qc7 {[%clk 0:01:36.7]} 12. O-O {[%clk 0:01:52.8]}
12... cxd5 {[%clk 0:01:19.5]} 13. Nxd5 {[%clk 0:01:50.1]} 13... Qc4 {[%clk
0:01:19.4]} 14. Qd4 {[%clk 0:01:40.2]} 14... Qxd4 {[%clk 0:01:08]} 15. Bxd4
{[%clk 0:01:37.8]} 15... e6 {[%clk 0:01:08.3]} 16. Rfe1 {[%clk 0:01:36.1]} 16...
O-O-O {[%clk 0:01:04.5]} 17. Nc3 {[%clk 0:01:32.8]} 17... Nb6 {[%clk 0:01:01.9]}
18. Nb5 {[%clk 0:01:29.2]} 18... Kb8 {[%clk 0:00:57.2]} 19. Bxb6 {[%clk
0:01:27]} 19... axb6 {[%clk 0:00:56.3]} 20. Rad1 {[%clk 0:01:23.6]} 20... Be7
{[%clk 0:00:53.5]} 21. Kf1 {[%clk 0:01:21]} 21... Nc7 {[%clk 0:00:45.7]} 22.
Nxc7 {[%clk 0:01:17.1]} 22... Kxc7 {[%clk 0:00:46.6]} 23. Ke2 {[%clk 0:01:14]}
23... Bf6 {[%clk 0:00:44.3]} 24. Rd3 {[%clk 0:01:04.9]} 24... Rxd3 {[%clk
0:00:41.7]} 25. Kxd3 {[%clk 0:01:04]} 25... Ra8 {[%clk 0:00:40.3]} 26. Kc4
{[%clk 0:00:55.4]} 26... Rxa3 {[%clk 0:00:39.6]} 27. Ne5 {[%clk 0:00:41.4]}
27... Bxe5 {[%clk 0:00:38.2]} 28. Rxe5 {[%clk 0:00:40.1]} 28... Ra1 {[%clk
0:00:38.9]} 29. Re2 {[%clk 0:00:39.8]} 29... g5 {[%clk 0:00:33.7]} 30. g3 {[%clk
0:00:37.6]} 30... Rh1 {[%clk 0:00:31.6]} 31. f3 {[%clk 0:00:35]} 31... Rf1
{[%clk 0:00:30.7]} 32. Re3 {[%clk 0:00:28.2]} 32... Rf2 {[%clk 0:00:24.1]} 33.
c3 {[%clk 0:00:28.2]} 33... Rxh2 {[%clk 0:00:23.6]} 34. f4 {[%clk 0:00:27.3]}
34... gxf4 {[%clk 0:00:20.5]} 35. gxf4 {[%clk 0:00:26.6]} 35... Rf2 {[%clk
0:00:13.1]} 36. Re4 {[%clk 0:00:25.4]} 36... h5 {[%clk 0:00:13.7]} 37. Kb5
{[%clk 0:00:24.3]} 37... h4 {[%clk 0:00:10.8]} 38. c4 {[%clk 0:00:20.7]} 38...
h3 {[%clk 0:00:10.1]} 39. Re3 {[%clk 0:00:19.8]} 39... Rxf4 {[%clk 0:00:07.6]}
40. Rxh3 {[%clk 0:00:19.7]} 40... Rf5+ {[%clk 0:00:08.4]} 41. c5 {[%clk
0:00:19.8]} 41... bxc5 {[%clk 0:00:07.8]} 42. bxc5 {[%clk 0:00:19.7]} 42... b6
{[%clk 0:00:08.6]} 43. Rh7 {[%clk 0:00:19.1]} 43... Rxc5+ {[%clk 0:00:08.3]} 44.
Kb4 {[%clk 0:00:19.2]} 44... Rf5 {[%clk 0:00:09.2]} 45. Kb3 {[%clk 0:00:19.4]}
45... Kc6 {[%clk 0:00:09.6]} 46. Kc4 {[%clk 0:00:19.5]} 46... Rf4+ {[%clk
0:00:08.9]} 47. Kd3 {[%clk 0:00:19.2]} 47... e5 {[%clk 0:00:09.5]} 48. Ke3
{[%clk 0:00:19.3]} 48... Kc5 {[%clk 0:00:08.7]} 49. Rh6 {[%clk 0:00:19.3]} 49...
f6 {[%clk 0:00:08.7]} 50. Rh8 {[%clk 0:00:19.2]} 50... b5 {[%clk 0:00:08.3]} 51.
Rc8+ {[%clk 0:00:19.1]} 51... Kb4 {[%clk 0:00:08.5]} 52. Rc1 {[%clk 0:00:17.8]}
52... Ka3 {[%clk 0:00:04.6]} 53. Rb1 {[%clk 0:00:17]} 53... b4 {[%clk
0:00:04.5]} 54. Rc1 {[%clk 0:00:16.5]} 54... b3 {[%clk 0:00:04.3]} 55. Rb1
{[%clk 0:00:16.2]} 55... b2 {[%clk 0:00:04.6]} 56. Rd1 {[%clk 0:00:16]} 56...
Ka2 {[%clk 0:00:04.6]} 57. Rd2 {[%clk 0:00:15.7]} 57... Ka1 {[%clk 0:00:05.1]}
58. Rd1+ {[%clk 0:00:15.5]} 58... b1=Q {[%clk 0:00:05.5]} 59. Rxb1+ {[%clk
0:00:15.4]} 59... Kxb1 {[%clk 0:00:06.4]} 0-1

[Event "Early-Titled-Tuesday-Blitz-May-07-2024"]
[Site "Chess.com"]
[Date "2024.05.07"]
[Round "3"]
[White "RobertoJBM"]
[Black "JeFumeDesClopes"]
[Result "0-1"]
[WhiteElo "2884"]
[BlackElo "2690"]
[TimeControl "180+1"]
[EndTime "8:33:08 PDT"]
[Termination "JeFumeDesClopes won on time"]

1. d4 {[%clk 0:03:00.9]} 1... g6 {[%clk 0:02:59.8]} 2. e4 {[%clk 0:02:59.2]}
2... Bg7 {[%clk 0:03:00.4]} 3. Nc3 {[%clk 0:02:58.9]} 3... d6 {[%clk 0:03:01]}
4. Be3 {[%clk 0:02:57.7]} 4... a6 {[%clk 0:03:00]} 5. Qd2 {[%clk 0:02:56.8]}
5... b5 {[%clk 0:03:00.2]} 6. a4 {[%clk 0:02:55.7]} 6... b4 {[%clk 0:02:57.9]}
7. Nd1 {[%clk 0:02:55.3]} 7... Nf6 {[%clk 0:02:51.2]} 8. f3 {[%clk 0:02:51.5]}
8... a5 {[%clk 0:02:49.3]} 9. Bh6 {[%clk 0:02:44.2]} 9... Bxh6 {[%clk
0:02:48.5]} 10. Qxh6 {[%clk 0:02:43.7]} 10... Nbd7 {[%clk 0:02:48.2]} 11. Bb5
{[%clk 0:02:41.3]} 11... Bb7 {[%clk 0:02:45.2]} 12. Ne2 {[%clk 0:02:40.7]} 12...
c6 {[%clk 0:02:44.4]} 13. Bd3 {[%clk 0:02:40.3]} 13... c5 {[%clk 0:02:42.3]} 14.
d5 {[%clk 0:02:36.5]} 14... e6 {[%clk 0:02:10.8]} 15. dxe6 {[%clk 0:02:34.2]}
15... fxe6 {[%clk 0:02:11.7]} 16. Ne3 {[%clk 0:02:28.5]} 16... Qe7 {[%clk
0:02:07.9]} 17. O-O {[%clk 0:02:18]} 17... Ne5 {[%clk 0:01:43.2]} 18. Bb5+
{[%clk 0:02:15.8]} 18... Kd8 {[%clk 0:01:24.3]} 19. Rad1 {[%clk 0:02:05.6]}
19... Kc7 {[%clk 0:01:22.7]} 20. Nf4 {[%clk 0:01:46.7]} 20... Raf8 {[%clk
0:01:06.1]} 21. Qh3 {[%clk 0:01:43.5]} 21... Bc8 {[%clk 0:01:04.7]} 22. Qg3
{[%clk 0:01:26.2]} 22... g5 {[%clk 0:00:59.5]} 23. Qxg5 {[%clk 0:01:13.5]} 23...
Rhg8 {[%clk 0:00:49.6]} 24. Qh4 {[%clk 0:01:04.1]} 24... Rg7 {[%clk 0:00:38.3]}
25. Kh1 {[%clk 0:01:00.9]} 25... Rfg8 {[%clk 0:00:24.8]} 26. Qxf6 {[%clk
0:00:50.8]} 26... Qxf6 {[%clk 0:00:25.7]} 27. Nfd5+ {[%clk 0:00:50.8]} 27...
exd5 {[%clk 0:00:26.6]} 28. Nxd5+ {[%clk 0:00:51.6]} 28... Kb8 {[%clk
0:00:24.5]} 29. Nxf6 {[%clk 0:00:52.5]} 29... Rf8 {[%clk 0:00:22.9]} 30. Nd5
{[%clk 0:00:50.5]} 30... Bb7 {[%clk 0:00:21.2]} 31. Ne3 {[%clk 0:00:48.1]} 31...
Kc7 {[%clk 0:00:19.9]} 32. h3 {[%clk 0:00:37.1]} 32... h5 {[%clk 0:00:19.1]} 33.
Kh2 {[%clk 0:00:37.1]} 33... Bc6 {[%clk 0:00:15.2]} 34. Bxc6 {[%clk 0:00:36.3]}
34... Kxc6 {[%clk 0:00:16.1]} 35. Nf5 {[%clk 0:00:36.6]} 35... Rd7 {[%clk
0:00:14.5]} 36. b3 {[%clk 0:00:36]} 36... c4 {[%clk 0:00:14.3]} 37. Rd4 {[%clk
0:00:35.6]} 37... c3 {[%clk 0:00:13.5]} 38. Rfd1 {[%clk 0:00:35.6]} 38... Rf6
{[%clk 0:00:12]} 39. Ne7+ {[%clk 0:00:34.7]} 39... Rxe7 {[%clk 0:00:11.6]} 40.
Rd5 {[%clk 0:00:33.8]} 40... Ra7 {[%clk 0:00:10]} 41. Kg3 {[%clk 0:00:33.8]}
41... Rg6+ {[%clk 0:00:08.9]} 42. Kf2 {[%clk 0:00:32.9]} 42... h4 {[%clk
0:00:09.5]} 43. f4 {[%clk 0:00:32.7]} 43... Rf7 {[%clk 0:00:08.6]} 44. f5 {[%clk
0:00:30.7]} 44... Rg3 {[%clk 0:00:03.2]} 45. Rxd6+ {[%clk 0:00:30.4]} 45... Kc7
{[%clk 0:00:02.8]} 46. Ra6 {[%clk 0:00:29.7]} 46... Nc6 {[%clk 0:00:03]} 47. Ra8
{[%clk 0:00:23.5]} 47... Re7 {[%clk 0:00:03.2]} 48. Re1 {[%clk 0:00:14.6]} 48...
Reg7 {[%clk 0:00:02.1]} 49. Rg1 {[%clk 0:00:13.8]} 49... Rd7 {[%clk 0:00:02.8]}
50. Rh8 {[%clk 0:00:05.9]} 50... Rd2+ {[%clk 0:00:03.7]} 51. Kf1 {[%clk
0:00:06.3]} 51... Re3 {[%clk 0:00:03.7]} 52. Rxh4 {[%clk 0:00:07.2]} 52... Rxc2
{[%clk 0:00:03.7]} 53. Rh7+ {[%clk 0:00:05.2]} 53... Kd6 {[%clk 0:00:02.3]} 54.
Rh6+ {[%clk 0:00:05.5]} 54... Kc5 {[%clk 0:00:03.2]} 55. f6 {[%clk 0:00:04.8]}
55... Rxe4 {[%clk 0:00:03.7]} 56. g3 {[%clk 0:00:03.3]} 56... Re3 {[%clk
0:00:03.8]} 57. Rg2 {[%clk 0:00:03.5]} 57... Rf3+ {[%clk 0:00:04.4]} 58. Kg1
{[%clk 0:00:04]} 58... Rxg2+ {[%clk 0:00:05.3]} 59. Kxg2 {[%clk 0:00:04.3]}
59... Rf5 {[%clk 0:00:05.9]} 60. Rh4 {[%clk 0:00:04.2]} 60... Rxf6 {[%clk
0:00:06.2]} 61. Rc4+ {[%clk 0:00:04.7]} 61... Kb6 {[%clk 0:00:06.9]} 62. g4
{[%clk 0:00:04.6]} 62... Ne5 {[%clk 0:00:07.4]} 63. Rc8 {[%clk 0:00:05.3]} 63...
Rc6 {[%clk 0:00:07.9]} 64. Re8 {[%clk 0:00:05]} 64... c2 {[%clk 0:00:07.7]} 0-1

[Event "Early-Titled-Tuesday-Blitz-May-07-2024"]
[Site "Chess.com"]
[Date "2024.05.07"]
[Round "3"]
[White "Kirillov_Andrey"]
[Black "tandaleo"]
[Result "1-0"]
[WhiteElo "2464"]
[BlackElo "2583"]
[TimeControl "180+1"]
[EndTime "8:33:08 PDT"]
[Termination "Kirillov_Andrey won by resignation"]

1. e4 {[%clk 0:03:00.9]} 1... e5 {[%clk 0:02:59.2]} 2. Nf3 {[%clk 0:03:00.5]}
2... Nc6 {[%clk 0:02:59.1]} 3. Bb5 {[%clk 0:03:00.8]} 3... a6 {[%clk 0:02:59.5]}
4. Ba4 {[%clk 0:03:00.4]} 4... d6 {[%clk 0:02:58.9]} 5. c3 {[%clk 0:02:58.4]}
5... Bd7 {[%clk 0:02:57.8]} 6. O-O {[%clk 0:02:58.4]} 6... Nge7 {[%clk
0:02:58.4]} 7. d4 {[%clk 0:02:58.1]} 7... Ng6 {[%clk 0:02:59.1]} 8. Re1 {[%clk
0:02:40.9]} 8... Be7 {[%clk 0:02:58]} 9. Nbd2 {[%clk 0:02:41.4]} 9... h6 {[%clk
0:02:55.6]} 10. Nf1 {[%clk 0:02:39.8]} 10... Bg5 {[%clk 0:02:55.8]} 11. Ng3
{[%clk 0:02:35.6]} 11... Bxc1 {[%clk 0:02:55.4]} 12. Qxc1 {[%clk 0:02:36.5]}
12... Nf4 {[%clk 0:02:35.1]} 13. Qe3 {[%clk 0:02:28.9]} 13... b5 {[%clk
0:02:33.3]} 14. Bb3 {[%clk 0:02:28]} 14... Qf6 {[%clk 0:02:33]} 15. dxe5 {[%clk
0:02:19.4]} 15... Nxe5 {[%clk 0:02:17.3]} 16. Nxe5 {[%clk 0:02:19]} 16... dxe5
{[%clk 0:02:17.9]} 17. Red1 {[%clk 0:02:04.6]} 17... Qe7 {[%clk 0:02:04.3]} 18.
a4 {[%clk 0:01:54.2]} 18... O-O {[%clk 0:02:02.6]} 19. axb5 {[%clk 0:01:54.3]}
19... axb5 {[%clk 0:02:03]} 20. Ra7 {[%clk 0:01:53.9]} 20... Rfc8 {[%clk
0:00:55.3]} 21. Rda1 {[%clk 0:01:37.4]} 21... Rxa7 {[%clk 0:00:54.5]} 22. Rxa7
{[%clk 0:01:37.7]} 22... Qd6 {[%clk 0:00:50.2]} 23. h3 {[%clk 0:01:34.6]} 23...
c5 {[%clk 0:00:38.5]} 24. Nf5 {[%clk 0:01:25.1]} 24... Bxf5 {[%clk 0:00:37.5]}
25. Bxf7+ {[%clk 0:01:24.8]} 25... Kh8 {[%clk 0:00:37.9]} 26. exf5 {[%clk
0:01:25.2]} 26... Qd1+ {[%clk 0:00:26.6]} 27. Kh2 {[%clk 0:01:25.1]} 27... Rf8
{[%clk 0:00:13]} 28. Qxc5 {[%clk 0:00:23.6]} 28... Qd8 {[%clk 0:00:06.9]} 29. g3
{[%clk 0:00:19.7]} 29... Ne2 {[%clk 0:00:05.7]} 30. Be6 {[%clk 0:00:18.9]} 30...
e4 {[%clk 0:00:04.8]} 31. Rd7 {[%clk 0:00:18.9]} 31... Qf6 {[%clk 0:00:05]} 32.
Rd2 {[%clk 0:00:16.6]} 32... Nc1 {[%clk 0:00:05.2]} 33. Qe3 {[%clk 0:00:16.1]}
33... Nd3 {[%clk 0:00:05.5]} 34. Qxe4 {[%clk 0:00:15.5]} 34... Ne5 {[%clk
0:00:06.1]} 35. Re2 {[%clk 0:00:14.9]} 35... Nf7 {[%clk 0:00:03]} 36. Bxf7
{[%clk 0:00:15]} 36... Rxf7 {[%clk 0:00:03.9]} 37. Qe8+ {[%clk 0:00:14.6]} 37...
Kh7 {[%clk 0:00:04.5]} 38. Qe6 {[%clk 0:00:15.2]} 38... Rf8 {[%clk 0:00:02.7]}
39. Qxf6 {[%clk 0:00:15]} 39... Rxf6 {[%clk 0:00:03.1]} 40. g4 {[%clk
0:00:15.6]} 40... Rb6 {[%clk 0:00:02.8]} 41. b4 {[%clk 0:00:14.2]} 41... Rc6
{[%clk 0:00:03.2]} 42. Re3 {[%clk 0:00:14.8]} 42... Rc4 {[%clk 0:00:03.4]} 43.
Kg3 {[%clk 0:00:15.4]} 43... Kg8 {[%clk 0:00:04.1]} 44. f3 {[%clk 0:00:13.7]}
44... Kf7 {[%clk 0:00:04.5]} 45. Kf2 {[%clk 0:00:14.4]} 45... Kf6 {[%clk
0:00:04.5]} 46. Ke2 {[%clk 0:00:15]} 46... Rc7 {[%clk 0:00:02.7]} 47. Rd3 {[%clk
0:00:13.7]} 47... Kg5 {[%clk 0:00:03]} 48. Kd2 {[%clk 0:00:13.4]} 48... Kf4
{[%clk 0:00:02.9]} 49. h4 {[%clk 0:00:11.6]} 49... Kg3 {[%clk 0:00:02.6]} 50. g5
{[%clk 0:00:12.1]} 50... Kxh4 {[%clk 0:00:01.5]} 51. gxh6 {[%clk 0:00:12.1]}
51... gxh6 {[%clk 0:00:01.9]} 52. f6 {[%clk 0:00:12.5]} 52... Kg5 {[%clk
0:00:02.1]} 53. Rd5+ {[%clk 0:00:11.4]} 53... Kxf6 {[%clk 0:00:02.7]} 54. Rxb5
{[%clk 0:00:12.1]} 54... Rh7 {[%clk 0:00:03.2]} 55. Rh5 {[%clk 0:00:10.6]} 55...
Kg6 {[%clk 0:00:03.4]} 56. Rh1 {[%clk 0:00:10.4]} 56... h5 {[%clk 0:00:04]} 57.
c4 {[%clk 0:00:10.7]} 57... Kg5 {[%clk 0:00:01.9]} 58. c5 {[%clk 0:00:11.1]}
58... Kf4 {[%clk 0:00:02.5]} 59. b5 {[%clk 0:00:10.4]} 59... Kxf3 {[%clk
0:00:02]} 60. c6 {[%clk 0:00:10.6]} 60... Ke4 {[%clk 0:00:02.1]} 61. b6 {[%clk
0:00:09.7]} 61... Kd5 {[%clk 0:00:01.6]} 62. b7 {[%clk 0:00:10.3]} 62... Rh8
{[%clk 0:00:01.2]} 63. c7 {[%clk 0:00:10.6]} 63... Kc6 {[%clk 0:00:02.1]} 64.
c8=Q+ {[%clk 0:00:11]} 1-0